Cogmind - Beta 16.1 @@@ ROGUE MODE // 2026.03.14 @ 09:37:40 Player: War__Prophet Result: Destroyed by S-27 Virus with Autogun Performance ------------- Evolutions (6) 3000 Regions Visited (9) 1800 Robots Destroyed (46) 230 Value Destroyed (765) 765 Prototype IDs (4) 80 Alien Tech Used (0) 0 Bonus (1000) 1000 TOTAL SCORE: 6875 Bonus ------- Entered DSFs 1000 Cogmind --------- Core Integrity 0/1150 Matter 240/300 Energy 72/100 System Corruption 0% Temperature Cool (0) Movement Core (50) Location -4/Factory Parts ------- > --- POWER (3) -------- (None) > --- PROPULSION (9) --- (None) > --- UTILITY (5) ------ (None) > --- WEAPON (2) ------- (None) > --- INVENTORY (5) ---- Antimatter Reactor Medium Matter Pod (100) Advanced Weight Redist. System Hardened Heavy Armor Plating Peak State ------------ > --- POWER ------------ Ion Engine Light Antimatter Reactor Hybrid Antimatter Reactor > --- PROPULSION ------- Improved Flight Unit Cooled Cesium-ion Thruster Advanced Surge Thruster Advanced Surge Thruster Advanced Surge Thruster Advanced Surge Thruster Advanced Surge Thruster Advanced Surge Thruster Advanced Surge Thruster > --- UTILITY ---------- Advanced Cooling System Medium Storage Unit Advanced Weight Redist. System Advanced Sensor Array Improved Signal Interpreter > --- WEAPON ----------- Heavy Hammer > --- INVENTORY -------- Cryofiber Web Medium Matter Pod Transport Network Coupler Hardened Heavy Armor Plating Improved Hardlight Generator Force Field Missile Launcher [Rating: 95] Favorites ----------- Power Ion Engine Engine Ion Engine Reactor Light Antimatter Reactor Propulsion Advanced Surge Thruster Wheel Wheel Flight Unit Advanced Surge Thruster Utility Medium Storage Unit Device Advanced Weight Redist. System Storage Medium Storage Unit Processor Improved Signal Interpreter Protection Propulsion Shielding Weapon Heavy Hammer Ballistic Gun Light Assault Rifle Ballistic Cannon Improved Light Cannon Impact Weapon Heavy Hammer Slashing Weapon Chainsword Build | -11 -10 -9 -8 -7 -7 -6 -5 -5 -4 ------- Run | Yrd Mat Mat Mat Fac DSF Fac Fac DSF Fac Slots Evolved 12 | . . 2 2 2 . 2 2 . 2 Power 2 | . . . 1 . . 1 . . . Propulsion 7 | . . 2 . 2 . . 2 . 1 Utility 3 | . . . 1 . . 1 . . 1 Weapon . | . . . . . . . . . . Parts Attached 60 | 5 12 6 4 4 1 7 . 1 20 Power 12 | 1 2 1 2 . 1 1 . . 4 Engine 8 | 1 2 1 2 . 1 1 . . . Core . | . . . . . . . . . . Reactor 4 | . . . . . . . . . 4 Propulsion 22 | 2 4 4 . 2 . 1 . . 9 Treads . | . . . . . . . . . . Leg . | . . . . . . . . . . Wheel 3 | 2 1 . . . . . . . . Hover . | . . . . . . . . . . Flight 19 | . 3 4 . 2 . 1 . . 9 Utility 18 | 1 1 1 2 2 . 5 . 1 5 Device 12 | . . 1 . 2 . 4 . 1 4 Storage 3 | 1 . . 1 . . . . . 1 Processor 2 | . 1 . . . . 1 . . . Hackware . | . . . . . . . . . . Protection 1 | . . . 1 . . . . . . Artifact . | . . . . . . . . . . Weapon 8 | 1 5 . . . . . . . 2 Energy Gun . | . . . . . . . . . . Energy Cannon . | . . . . . . . . . . Ballistic Gun 2 | 1 1 . . . . . . . . Ballistic Cannon 2 | . 2 . . . . . . . . Launcher . | . . . . . . . . . . Special Weapon . | . . . . . . . . . . Impact Weapon 2 | . 2 . . . . . . . . Slashing Weapon 2 | . . . . . . . . . 2 Piercing Weapon . | . . . . . . . . . . Special Melee Weapon . | . . . . . . . . . . Unidentified Prototypes 4 | . . 1 . . . 1 . . 2 Corrupted Parts 1 | . . 1 . . . . . . . System Corruption 7 | . . 7 . . . . . . . Parts Lost 26 | . 1 . 2 . 3 1 . 2 17 Power 5 | . . . 1 . 2 . . . 2 Propulsion 15 | . 1 . . . 1 1 . 1 11 Utility 2 | . . . 1 . . . . . 1 Weapon 4 | . . . . . . . . 1 3 Highest Loss Streak 5 | . 1 . 2 . 3 1 . 2 5 To Critical Strikes . | . . . . . . . . . . Average Backups 6 | . 5 4 5 6 7 8 9 9 8 Power . | . . . . 1 1 . . . 1 Propulsion . | . 1 . . . . . . . . Utility 4 | . 3 3 3 4 5 7 8 8 5 Weapon . | . . 1 1 1 1 1 1 1 . Tool/Special . | . . . . . . . . . . Unused Backups 10 | . 3 1 . . . . . . 6 Power . | . . . . . . . . . . Propulsion 1 | . 1 . . . . . . . . Utility 8 | . 2 1 . . . . . . 5 Weapon 1 | . . . . . . . . . 1 Tool/Special . | . . . . . . . . . . Average Slot Usage (%) 76 | . 80 77 91 98 95 82 76 74 66 Engine 8 | . 14 11 13 15 11 9 11 11 3 Reactor 1 | . . . . . . . . . 3 Wheel 2 | . 13 . . . . . . . . Flight 31 | . 14 31 36 44 44 34 29 29 35 Device 7 | . . 8 4 5 7 10 11 11 10 Storage 4 | . 7 . 2 7 7 6 5 5 4 Processor 6 | . 12 11 9 1 . 3 5 5 4 Protection 1 | . . . 8 7 7 2 . . . Ballistic Gun 1 | . 6 . . . . . . . . Impact Weapon 9 | . 10 15 18 15 15 13 11 9 3 Peak Build Rating 95 | 5 9 20 24 27 27 39 39 39 95 Average Rating 38 | 3 6 11 22 26 26 36 39 38 68 On Entrance 22 | . 5 6 20 24 26 23 39 39 38 Avg Prop Armor Cover (%) 16 | . . . . . . . . . 16 Naked Turns 2 | . . . . . . . . . 2 Heaviest Build 40 | 9 18 10 25 26 26 33 31 31 40 Greatest Support 58 | 20 26 20 20 28 28 39 34 34 58 Greatest Overweight (x) 3 | . 3 . 1 . . . . 1 1 Average Overweight (x) . | . . . . . . . . . . Largest Inventory Capacity 10 | 8 8 5 10 10 10 10 10 10 10 Average Capacity 8 | 6 6 5 6 10 10 10 10 10 9 Most Carried 10 | 1 8 5 9 8 10 10 10 10 10 Average Carried 7 | . 5 4 5 6 8 9 10 10 9 Final Capacity 10 | 8 5 5 10 10 10 10 10 10 5 Final Carried 10 | 1 5 5 9 7 9 10 10 10 5 Class Distribution -------------------- 52% | Mutant 36% | Sprinter 11% | Scavenger-Sprinter Dominant Class ---------------- Mutant | -10/Materials Mutant | -9/Materials Sprinter | -8/Materials Sprinter | -7/Factory Scavenger-Sprinter | -7/DSF Scavenger-Sprinter | -6/Factory Scavenger-Sprinter | -5/Factory Scavenger-Sprinter | -5/DSF Mutant | -4/Factory Resources | -11 -10 -9 -8 -7 -7 -6 -5 -5 -4 ----------- Run | Yrd Mat Mat Mat Fac DSF Fac Fac DSF Fac Matter Collected 933 | 197 189 217 40 . . 120 . 5 165 Remotely . | . . . . . . . . . . Salvage Created 1880 | . 249 262 464 . . 424 . . 481 Parts 50 | . 11 3 24 . . 3 . . 9 Haulers Intercepted 8 | . 1 2 2 . . 2 . . 1 Recyclers Shooed 1 | . . 1 . . . . . . . Parts Field Recycled . | . . . . . . . . . . Retrieved Matter . | . . . . . . . . . . Parts Self-Destructed . | . . . . . . . . . . Prevented . | . . . . . . . . . . Parts Restored . | . . . . . . . . . . Kills | -11 -10 -9 -8 -7 -7 -6 -5 -5 -4 ------- Run | Yrd Mat Mat Mat Fac DSF Fac Fac DSF Fac Combat Hostiles Destroyed 15 | . 7 . 8 . . . . . . Melee 6 | . 2 . 4 . . . . . . Guns 3 | . 3 . . . . . . . . Classes Destroyed 10 | . 5 2 2 . . . . . 1 Worker 10 | . 1 2 1 . . 1 . . 5 Tunneler 1 | . . . . . . . . . 1 Hauler 8 | . 1 2 2 . . 2 . . 1 Recycler 7 | . . 2 1 . . 2 . . 2 Mechanic 2 | . . . 1 . . . . . 1 Operator 1 | . 1 . . . . . . . . Watcher 2 | . . 1 . . . . . . 1 Swarmer 7 | . 3 . 4 . . . . . . Grunt 6 | . 4 . 2 . . . . . . Sentry 2 | . . . 2 . . . . . . Best Kill Streak 9 | . 3 3 9 . . 1 . . 5 Combat Bots Only 6 | . 3 . 6 . . . . . . Max Kills in Single Turn 3 | . 1 1 1 . . 1 . . 3 Gunslinging . | . . . . . . . . . . Exploded . | . . . . . . . . . . Melee 1 | . 1 . 1 . . . . . . Uniques/NPCs Destroyed . | . . . . . . . . . . Combat | -11 -10 -9 -8 -7 -7 -6 -5 -5 -4 -------- Run | Yrd Mat Mat Mat Fac DSF Fac Fac DSF Fac Hostile Shots Fired 308 | . 34 6 48 . 15 14 . 6 185 Missed 144 | . 15 3 21 . 6 11 . . 88 Hits 164 | . 19 3 27 . 9 3 . 6 97 Melee 6 | . . . . . 6 . . . . Projectile 158 | . 19 3 27 . 3 3 . 6 97 AOE 6 | . . . . . 2 . . . 4 Critical Strikes 8 | . . . . . 4 1 . . 3 Actively Blocked 3 | . . . . . 2 1 . . . Part Disruptions 2 | . . . . . . . . 1 1 Damage Taken 3419 | . 199 33 285 . 293 35 . 225 2349 Core 1445 | . 80 10 95 . 23 6 . 79 1152 Absorbed by Shields 16 | . . . . . . 16 . . . Redirected to Shielding 42 | . . . 17 . 17 8 . . . Core Remaining (%) 90 | 100 68 97 82 . 96 99 . 92 . Volleys Fired 8 | . 8 . . . . . . . . Largest 2 | . 2 . . . . . . . . Hottest 40 | . 40 . . . . . . . . Shots Fired 11 | . 11 . . . . . . . . Gun 11 | . 11 . . . . . . . . Cannon . | . . . . . . . . . . Launcher . | . . . . . . . . . . Special . | . . . . . . . . . . Kinetic 11 | . 11 . . . . . . . . Thermal . | . . . . . . . . . . Explosive . | . . . . . . . . . . Electromagnetic . | . . . . . . . . . . Robot Hit Streak 3 | . 3 . . . . . . . . Robot Miss Streak 3 | . 3 . . . . . . . . Penetration Max . | . . . . . . . . . . Secondary Targets 1 | . 1 . . . . . . . . Max Gunslinging Chain 1 | . 1 . . . . . . . . Shots Hit Robots 79 | . 23 8 24 . . 13 . . 11 Core Hits 15 | . 6 . 5 . . 1 . . 3 Critical Kills 4 | . 2 . 1 . . 1 . . . Critical Parts Destroyed 10 | . 1 3 1 . . 4 . . 1 Critical Strikes 14 | . 3 3 2 . . 5 . . 1 Smash 14 | . 3 3 2 . . 5 . . 1 Melee Attacks 122 | . 26 16 38 . 2 21 . . 19 Impact 121 | . 26 16 38 . 2 21 . . 18 Slashing 1 | . . . . . . . . . 1 Piercing . | . . . . . . . . . . Sneak Attacks 28 | . 3 7 5 . . 6 . . 7 Combat Hostiles . | . . . . . . . . . . Follow-up Attacks 7 | . . 1 4 . 1 1 . . . Damage Inflicted 4733 | . 869 696 1288 . . 799 . 14 1067 Guns 45 | . 45 . . . . . . . . Cannons . | . . . . . . . . . . Explosions 324 | . . . . . . . . . 324 Melee 4350 | . 824 696 1288 . . 799 . . 743 Ramming 14 | . . . . . . . . 14 . Kinetic 45 | . 45 . . . . . . . . Thermal 324 | . . . . . . . . . 324 Explosive . | . . . . . . . . . . Electromagnetic . | . . . . . . . . . . Impact 4350 | . 824 696 1288 . . 799 . . 743 Slashing . | . . . . . . . . . . Piercing . | . . . . . . . . . . Highest Corruption 7 | . . 7 . . . . . 1 . Average Corruption 6 | . . 7 . . . . . 1 . Corruption Purged . | . . . . . . . . . . Corruption Blocked . | . . . . . . . . . . Effects 4 | . . 4 . . . . . . . Matter Fused 1 | . . 1 . . . . . . . Heat Flow Errors 1 | . . 1 . . . . . . . Data Loss (minor) 1 | . . 1 . . . . . . . Data Loss (major) 1 | . . 1 . . . . . . . Overload Shots . | . . . . . . . . . . Overflow Damage 1750 | . 266 500 306 . . 300 . . 378 Projectiles . | . . . . . . . . . . Explosions 34 | . . . . . . . . . 34 Melee 1716 | . 266 500 306 . . 300 . . 344 Knockbacks 13 | . 4 2 4 . . . . . 3 Impact 13 | . 4 2 4 . . . . . 3 Kinetic . | . . . . . . . . . . Secondary . | . . . . . . . . . . Self-Inflicted Damage 445 | . . . . . . . . 7 438 Shots 6 | . . . . . . . . . 6 Rammed 1 | . . . . . . . . 1 . Targets Rammed 1 | . . . . . . . . 1 . Kicked . | . . . . . . . . . . Crushed . | . . . . . . . . . . Highest Temperature 468 | . . 225 1 15 . 36 . . 468 Average Temperature 121 | . . 175 1 12 . 9 . . 143 Received Heat Transfer 409 | . 66 18 63 . . 16 . 18 228 Effects 1 | . . . . . . . . . 1 Shutdowns 1 | . . . . . . . . . 1 Siege Activations . | . . . . . . . . . . Martial Activations . | . . . . . . . . . . Shielding Activations . | . . . . . . . . . . Robots Disrupted . | . . . . . . . . . . Combat Hostiles . | . . . . . . . . . . Robots Corrupted 21 | . 3 6 4 . . 2 . . 6 Combat Hostiles 6 | . 2 . 4 . . . . . . Parts Fried 34 | . 5 5 6 . . 5 . . 13 Impact Corruptions 57 | . 11 12 12 . . 9 . . 13 Robots Melted . | . . . . . . . . . . Combat Hostiles . | . . . . . . . . . . Parts Melted 3 | . . . . . . . . . 3 Heat Transferred 200 | . . . . . . . . . 200 Parts Sabotaged . | . . . . . . . . . . Parts Stolen . | . . . . . . . . . . Parts Stripped . | . . . . . . . . . . Power Chain Reactions . | . . . . . . . . . . Alert | -11 -10 -9 -8 -7 -7 -6 -5 -5 -4 ------- Run | Yrd Mat Mat Mat Fac DSF Fac Fac DSF Fac Maximum Alert Level 2 | . . . . . . . . . 2 Low Security (%) 99 | 100 100 100 100 100 100 100 100 100 98 Level 1 . | . . . . . . . . . . Level 2 . | . . . . . . . . . 1 Level 3 . | . . . . . . . . . . Level 4 . | . . . . . . . . . . Level 5 . | . . . . . . . . . . High Security . | . . . . . . . . . . Max Security . | . . . . . . . . . . Peak Influence 410 | . 97 75 177 79 49 112 48 33 410 Initial 79 | . . 28 22 79 44 14 48 33 6 Average 56 | . 50 27 79 73 41 50 48 28 67 Influence Increases 1621 | . 219 131 252 5 15 176 . . 823 Destroy 0b10 Robot/C 300 | . 140 . 160 . . . . . . Destroy 0b10 Robot/NC 155 | . 15 35 25 . . 25 . . 55 Destroy Leader 78 | . 32 6 34 . . 2 . . 4 Successful Hack 23 | . . 8 . 5 . 10 . . . Disable Machine 195 | . . . . . . 30 . . 165 Destroy Structure 120 | . 2 7 3 . . 4 . . 104 Partial Spotted 60 | . . . 15 . . 30 . . 15 Lose Combat Pursuer 690 | . 30 75 15 . 15 75 . . 480 Influence Decreases 1221 | . 150 146 132 115 50 106 51 35 436 Entered New Map 276 | . . 41 32 95 20 15 51 15 7 Time Decay 695 | . 140 105 80 20 . 91 . . 259 Lost Part 250 | . 10 . 20 . 30 . . 20 170 Squads Dispatched 10 | . 2 1 . . 1 . . 1 5 Investigation . | . . . . . . . . . . Extermination 2 | . . . . . . . . . 2 Reinforcement 8 | . 2 1 . . 1 . . 1 3 Assault . | . . . . . . . . . . Garrison . | . . . . . . . . . . Intercept . | . . . . . . . . . . Searches Triggered . | . . . . . . . . . . Construction Impeded . | . . . . . . . . . . Haulers Reinforced 2 | . . . . . . . . . 2 Active Scanning Responses . | . . . . . . . . . . Cargo Convoy Interrupts . | . . . . . . . . . . Stealth | -11 -10 -9 -8 -7 -7 -6 -5 -5 -4 --------- Run | Yrd Mat Mat Mat Fac DSF Fac Fac DSF Fac Distress Signals 7 | . . . 2 . . . . . 5 Communications Jammed . | . . . . . . . . . . Distress Signals . | . . . . . . . . . . Times Spotted 101 | . 15 9 13 1 5 5 . 4 49 Peak Tracking Total 15 | . 4 5 9 1 4 5 . 5 15 Tactical Retreats 19 | . 1 1 1 . 1 3 . . 12 Traps | -11 -10 -9 -8 -7 -7 -6 -5 -5 -4 ------- Run | Yrd Mat Mat Mat Fac DSF Fac Fac DSF Fac Traps Triggered 2 | . . . . . 1 . . 1 . Indirectly . | . . . . . . . . . . Trap Hack Attempts . | . . . . . . . . . . Triggered . | . . . . . . . . . . Disarmed . | . . . . . . . . . . Reprogrammed . | . . . . . . . . . . Reused . | . . . . . . . . . . Traps Extracted . | . . . . . . . . . . Installed . | . . . . . . . . . . Triggered . | . . . . . . . . . . Machines | -11 -10 -9 -8 -7 -7 -6 -5 -5 -4 ---------- Run | Yrd Mat Mat Mat Fac DSF Fac Fac DSF Fac Machines Disabled 13 | . . . . . . 2 . . 11 Max in Single Turn 11 | . . . . . . 1 . . 11 Machines Repaired . | . . . . . . . . . . Machines Dismantled . | . . . . . . . . . . Machines Sabotaged . | . . . . . . . . . . Overloaded Fab Kills . | . . . . . . . . . . Hacking | -11 -10 -9 -8 -7 -7 -6 -5 -5 -4 --------- Run | Yrd Mat Mat Mat Fac DSF Fac Fac DSF Fac Machines Accessed 8 | . . 3 1 1 . 2 1 . . Terminals 8 | . . 3 1 1 . 2 1 . . Fabricators . | . . . . . . . . . . Repair Stations . | . . . . . . . . . . Recycling Units . | . . . . . . . . . . Scanalyzers . | . . . . . . . . . . Garrison Access . | . . . . . . . . . . Total Hacks 8 | . . 3 1 1 . 2 1 . . Successful 8 | . . 3 1 1 . 2 1 . . Failed . | . . . . . . . . . . Catastrophic . | . . . . . . . . . . Database Lockouts . | . . . . . . . . . . Manual 4 | . . 3 1 . . . . . . Terminals 8 | . . 3 1 1 . 2 1 . . Fabricators . | . . . . . . . . . . Repair Stations . | . . . . . . . . . . Recycling Units . | . . . . . . . . . . Scanalyzers . | . . . . . . . . . . Garrison Access . | . . . . . . . . . . Terminal Hacks 4 | . . . . 1 . 2 1 . . Open DSF 4 | . . . . 1 . 2 1 . . Fabricator Hacks . | . . . . . . . . . . Repair Station Hacks . | . . . . . . . . . . Recycling Unit Hacks . | . . . . . . . . . . Scanalyzer . | . . . . . . . . . . Garrison Access Hacks . | . . . . . . . . . . Unauthorized Hacks 4 | . . 3 1 . . . . . . Terminals 4 | . . 3 1 . . . . . . Skim 4 | . . 3 1 . . . . . . Fabricators . | . . . . . . . . . . Repair Stations . | . . . . . . . . . . Recycling Units . | . . . . . . . . . . Scanalyzers . | . . . . . . . . . . Garrison Access . | . . . . . . . . . . Data Cores Recovered . | . . . . . . . . . . Used . | . . . . . . . . . . Hacking Detections 2 | . . . . 1 . 1 . . . Full Trace Events . | . . . . . . . . . . Feedback Events . | . . . . . . . . . . Feedback Blocked . | . . . . . . . . . . Robot Schematics Acquired . | . . . . . . . . . . Robots Built . | . . . . . . . . . . Authchips . | . . . . . . . . . . Time . | . . . . . . . . . . Total Robot Build Rating . | . . . . . . . . . . Part Schematics Acquired . | . . . . . . . . . . Parts Built . | . . . . . . . . . . Authchips . | . . . . . . . . . . Time . | . . . . . . . . . . Total Part Build Rating . | . . . . . . . . . . Part Studies Acquired . | . . . . . . . . . . Parts Repaired . | . . . . . . . . . . Time . | . . . . . . . . . . Parts Recycled . | . . . . . . . . . . Recycled Matter . | . . . . . . . . . . Retrieved Matter . | . . . . . . . . . . Retrieved Components . | . . . . . . . . . . Parts Scanalyzed . | . . . . . . . . . . Part Schematics Acquired . | . . . . . . . . . . Parts Damaged . | . . . . . . . . . . Bothacking | -11 -10 -9 -8 -7 -7 -6 -5 -5 -4 ------------ Run | Yrd Mat Mat Mat Fac DSF Fac Fac DSF Fac Used RIF Installer . | . . . . . . . . . . Robots Hacked . | . . . . . . . . . . Non-combat . | . . . . . . . . . . Combat . | . . . . . . . . . . Robot Hacks Applied . | . . . . . . . . . . Relay Couplers Released . | . . . . . . . . . . Fabnet Peak Effective % . | . . . . . . . . . . Robots Rewired . | . . . . . . . . . . Allies Hacked . | . . . . . . . . . . Hacks Repelled . | . . . . . . . . . . Allies | -11 -10 -9 -8 -7 -7 -6 -5 -5 -4 -------- Run | Yrd Mat Mat Mat Fac DSF Fac Fac DSF Fac Total Allies . | . . . . . . . . . . Largest Group . | . . . . . . . . . . Highest-Rated Group . | . . . . . . . . . . Highest-Rated Ally . | . . . . . . . . . . Total Orders . | . . . . . . . . . . Ally Attacks . | . . . . . . . . . . Total Damage . | . . . . . . . . . . Kills . | . . . . . . . . . . Allies Corrupted . | . . . . . . . . . . Allies Melted . | . . . . . . . . . . Intel | -11 -10 -9 -8 -7 -7 -6 -5 -5 -4 ------- Run | Yrd Mat Mat Mat Fac DSF Fac Fac DSF Fac Active Infowar (turns) 932 | . . 199 91 . . 107 4 16 515 Sensors 930 | . . 199 91 . . 107 4 16 513 Cloaking 2 | . . . . . . . . . 2 ECM 1 | . . . . . . . . . 1 Robot Analysis Total . | . . . . . . . . . . Derelict Logs Recovered . | . . . . . . . . . . Drone Launches . | . . . . . . . . . . Drone Recoveries . | . . . . . . . . . . Exploration | -11 -10 -9 -8 -7 -7 -6 -5 -5 -4 ------------- Run | Yrd Mat Mat Mat Fac DSF Fac Fac DSF Fac Turns Passed 1941 | 42 363 248 179 40 57 201 4 16 791 Spaces Moved 3093 | 43 409 536 185 84 119 429 13 52 1223 Core 7 | 2 . . . . . . . . 5 Treads . | . . . . . . . . . . Legs . | . . . . . . . . . . Wheels 201 | 41 160 . . . . . . . . Hover . | . . . . . . . . . . Flight 2885 | . 249 536 185 84 119 429 13 52 1218 Fastest Speed 5 | 50 37 31 31 25 25 20 27 27 5 Average Speed 31 | 78 55 34 42 25 25 26 27 28 22 Slowest Speed 280 | 80 280 37 101 25 28 28 27 104 68 Overloaded Moves 161 | . . . . . . 8 . . 153 Propulsion Burnouts . | . . . . . . . . . . Robots Hopped 8 | . . . . . 1 2 . . 5 Potential Cave-ins . | . . . . . . . . . . Cave-ins Triggered . | . . . . . . . . . . Exploration Rate (%) 27 | 3 56 33 18 3 84 9 1 38 33 Regions Visited 9 Branch Regions . Pre-discovered Areas . | . . . . . . . . . . Known Exits Taken 6 | . 1 1 1 1 . 1 1 . . Unknown Exits Taken 1 | 1 . . . . . . . . . Scrap Searched . | . . . . . . . . . . Spaces Dug 20 | . 2 7 3 . . 4 . . 4 Terrain Destroyed 80 | . 2 7 3 . . 4 . . 64 Melee 20 | . 2 7 3 . . 4 . . 4 Projectile . | . . . . . . . . . . AOE 60 | . . . . . . . . . 60 Terrain Rammed . | . . . . . . . . . . Walls Destroyed . | . . . . . . . . . . Machines Disabled . | . . . . . . . . . . Actions | -11 -10 -9 -8 -7 -7 -6 -5 -5 -4 --------- Run | Yrd Mat Mat Mat Fac DSF Fac Fac DSF Fac Total 3836 | 48 500 572 227 103 141 479 12 54 1700 Wait 459 | . 11 6 2 13 4 21 . . 402 Move 3070 | 42 408 535 184 83 116 424 12 52 1214 Hop 7 | . . . . . 1 2 . . 4 Pick Up 29 | 1 12 3 6 1 2 . . . 4 Fast Attach 39 | 5 8 2 2 . 1 5 . . 16 Attach 28 | . 4 2 2 4 1 2 . . 13 Detach 24 | . 6 . . 2 . 2 . . 14 Swap 11 | . 3 5 . . . 1 . 1 1 Drop 36 | . 16 4 . . . 2 . 1 13 Fire 8 | . 8 . . . . . . . . Melee 110 | . 24 15 31 . 1 20 . . 19 Ram . | . . . . . . . . . . Kick . | . . . . . . . . . . Crush . | . . . . . . . . . . Escape Stasis 15 | . . . . . 15 . . . . Rewire . | . . . . . . . . . . Trap . | . . . . . . . . . . Miscellaneous . | . . . . . . . . . . Route ------- -11/Scrapyard -10/Materials (discovered 2 exits: *Mat / [*Min]) -9/Materials (discovered 2 exits: *Mat / [*Min]) -8/Materials -7/Factory -7/DSF -6/Factory -5/Factory -5/DSF -4/Factory (discovered 1 exit: *Upp) History --------- Turn | Location | Event 13 | -11/Scrapyard | Discovered new exit (range 15) 43 | -11/Scrapyard | Entered Materials 170 | -10/Materials | Discovered new exit (range 7) 325 | -10/Materials | Build established: Mutant 394 | -10/Materials | Discovered new exit (range 6) 406 | -10/Materials | Identified exit to Materials 406 | -10/Materials | Entered another Materials area 406 | -9/Materials | Evolved 2 slots: Propulsion x2 617 | -9/Materials | Discovered new exit (range 13) 651 | -9/Materials | Discovered new exit (range 9) 654 | -9/Materials | Identified exit to Materials 654 | -9/Materials | Entered another Materials area 654 | -8/Materials | Evolved 2 slots: Power x1, Utility x1 726 | -8/Materials | Discovered new exit (range 16) 832 | -8/Materials | Identified exit to Factory 833 | -8/Materials | Entered Factory 833 | -7/Factory | Evolved 2 slots: Propulsion x2 873 | -7/Factory | Identified exit to DSF 873 | -7/Factory | Entered DSF 898 | -7/DSF | Additional patrols routed to DSF 924 | -7/DSF | Discovered new exit (range 14) 930 | -7/DSF | Entered Factory 930 | -6/Factory | Evolved 2 slots: Power x1, Utility x1 959 | -6/Factory | Lost 3 parts (2p1n) 1061 | -6/Factory | Spotted B-75 Beast 1130 | -6/Factory | Discovered new exit (range 5) 1131 | -6/Factory | Identified exit to Factory 1131 | -6/Factory | Entered another Factory area 1131 | -5/Factory | Evolved 2 slots: Propulsion x2 1134 | -5/Factory | Identified exit to DSF 1135 | -5/Factory | Entered DSF 1136 | -5/DSF | Joined Warlord attack on 0b10 via DSF 1140 | -5/DSF | Discovered new exit (range 11) 1150 | -5/DSF | Identified exit to Factory 1151 | -5/DSF | Entered Factory 1151 | -4/Factory | Evolved 2 slots: Propulsion x1, Utility x1 1226 | -4/Factory | 10 allies followed out of DSF 1276 | -4/Factory | Discovered new exit (range 15) 1279 | -4/Factory | Identified exit to Upper Caves 1367 | -4/Factory | Found Prototype Device 1367 | -4/Factory | Identified Exp. ECM Suite 1539 | -4/Factory | Spotted B-86 Titan 1674 | -4/Factory | Lost 5 parts (2p2n1w) 1880 | -4/Factory | Lost 3 parts (3n) 1932 | -4/Factory | Core integrity fell below 50% 1933 | -4/Factory | Core integrity fell below 20% 1942 | -4/Factory | Destroyed by S-27 Virus with Autogun Last Messages --------------- 01931_ Power Conduit explodes. 01931_ Seismic Detector melted. 01931_ Lgt. Ion Engine melted. 01931_ T-07 Excavator destroyed. 01931_ Power Conduit explodes. 01931_ Destroyed Lgt. Ion Engine. 01931_ Destroyed Recalibrator. 01931_ Power Conduit explodes. 01931_ M-13 Machinist destroyed. 01931_ Power Conduit explodes. 01931_ Wheel melted. 01931_ K-01 Serf destroyed. 01931_ K-01 Serf collects debris. 01932_ Chainsword destroyed. 01934_ K-01 Serf collects debris. 01940_ Cld. Cesium-ion Thruster destroyed. 01941_ ALERT: Potential suspicious activity detected, Programmers report to Factory Zone 1Z. 01941_ Penetrated by Slug. Map ----- +----------------------------------------------------+ | ?????????????????????????????????????????????????? | | ?????????????????????????????????????????????????? | | ?????????????????????????????????????????????????? | | ?????????????????????????????????????????????????? | | ?????????????????????????????????????????????????? | | ?????????????????????????????????????????????????? | | ?????????##??????????????????????????????????????? | | ???" ?#### ######????????????????????????????????? | | ?? # "###################??????????????? | | ? #"" "" #??????????????? | | ! #??????????????? | | #??????????????? | | #??????????????? | | #??????????????? | | #??????????????? | | * #??????????????? | | #??????????????? | | ##/###############??????????????? | | ## #????????????????? ??????????? | | ;# ################ ??????????? | | s sss ?????????? | | ?????????? | | H????????? | | ????????? | | % ????????? | | "#+##"###@########## ?????????? | | ???# ""?????????????????????? | | """ ?# ""R"???????????????????? | | """ ?# "" ""??????????????????? | | ""???# ??????????????????? | | ???# ?????????????????? | | ???# """"" ????????????????? | | ??# ""????????????????????? | | = ???# "?????????????????????? | | ! ! ??????[ ?????????????????????? | | ## ####"" ""?????????###?????????????????????? | | ?#+#?????"""" ???????????????????????????????????? | | ?????????????????????????????????????????????????? | | ?????????????????????????????????????????????????? | | ?????????????????????????????????????????????????? | | ?????????????????????????????????????????????????? | | ?????????????????????????????????????????????????? | | ?????????????????????????????????????????????????? | | ?????????????????????????????????????????????????? | | ?????????????????????????????????????????????????? | | ?????????????????????????????????????????????????? | | ?????????????????????????????????????????????????? | | ?????????????????????????????????????????????????? | | ?????????????????????????????????????????????????? | | ?????????????????????????????????????????????????? | +----------------------------------------------------+ Best States ------------- Heat Dissipation 74 Energy Generation 39 Energy Capacity 1325 Matter Stores 300 Matter Capacity 300 Sight Range 16 Robot Scan Range 16 Terrain Scan Density 10 Additional Mass Support 9 Base Temperature (-) 200 Propulsion Shielding 33 Evasion (%) 67 Item Schematics ----------------- None Robot Schematics ------------------ None Fabricated ------------ Nothing Repaired ---------- Nothing Studied --------- None Alien Tech Used ----------------- None Achievements -------------- Supersonic Whoosh! Challenges ------------ None Game ------ Seed SubatomicEnhancedJammer Manual? 0 Play Time 00:40:12 Cumulative 60.5 hours Start 2026.03.14 @ 09:00:16 End 2026.03.14 @ 09:37:40 Sessions 1 Manual Loads 0 Difficulty Rogue Special Mode None Game No. 219 Rogue 219 Adventurer 0 Explorer 0 Win Type - Total 0 Types 0/0/0/0/0/0/0/0/0/0 Lore% 14 Gallery% 39 Achievement% 28 Wizard Run 0 Options --------- Layout 1 ASCII 0 Keyboard 1 Movement Vi Keybinds 0 Fullscreen 2 Font 24/Smallcaps Map View 50x35 Zoom Use 0% Tactical HUD 1 Map Filters NONE Filters NONE Steam 1 RUN: 6db7d7d3-e3ce-4923-8cfb-00a1851d85b8